[Event "Late-Titled-Tuesday-Blitz-May-28-2024"]
[Site "Chess.com"]
[Date "2024.05.28"]
[Round "10"]
[White "NikitaShnadrygin"]
[Black "Ramosha"]
[Result "1-0"]
[WhiteElo "2739"]
[BlackElo "2582"]
[TimeControl "180+1"]
[EndTime "15:52:12 PDT"]
[Termination "NikitaShnadrygin won by checkmate"]

1. e4 {[%clk 0:03:00.9]} 1... c6 {[%clk 0:03:00]} 2. d4 {[%clk 0:03:00.4]} 2...
d5 {[%clk 0:03:00.6]} 3. f3 {[%clk 0:03:01.1]} 3... dxe4 {[%clk 0:03:00.8]} 4.
fxe4 {[%clk 0:03:01.9]} 4... e5 {[%clk 0:03:01.6]} 5. Nf3 {[%clk 0:03:02.1]}
5... Bg4 {[%clk 0:03:02.3]} 6. Bc4 {[%clk 0:03:01.6]} 6... Nd7 {[%clk 0:03:02]}
7. O-O {[%clk 0:03:01.8]} 7... Ngf6 {[%clk 0:03:02.3]} 8. c3 {[%clk 0:03:02.2]}
8... b5 {[%clk 0:03:02.7]} 9. Bb3 {[%clk 0:03:02.3]} 9... Be7 {[%clk 0:03:03]}
10. dxe5 {[%clk 0:02:52.5]} 10... Bxf3 {[%clk 0:02:59.8]} 11. Qxf3 {[%clk
0:02:24]} 11... Nxe5 {[%clk 0:02:59.2]} 12. Qg3 {[%clk 0:02:24.7]} 12... Ng6
{[%clk 0:02:58.2]} 13. e5 {[%clk 0:02:24.3]} 13... Nd5 {[%clk 0:02:57.6]} 14.
Nd2 {[%clk 0:02:19]} 14... O-O {[%clk 0:02:52.7]} 15. Nf3 {[%clk 0:02:19]} 15...
Qb6+ {[%clk 0:02:48.7]} 16. Kh1 {[%clk 0:02:18.9]} 16... Rad8 {[%clk 0:02:46.1]}
17. Nd4 {[%clk 0:02:16.3]} 17... Rfe8 {[%clk 0:02:36.1]} 18. Nf5 {[%clk
0:02:01.5]} 18... Bf8 {[%clk 0:02:34.1]} 19. Bg5 {[%clk 0:02:01.7]} 19... Rd7
{[%clk 0:02:31.7]} 20. Rae1 {[%clk 0:02:01.8]} 20... Nc7 {[%clk 0:02:20.5]} 21.
h4 {[%clk 0:01:38]} 21... h5 {[%clk 0:02:20.1]} 22. Be3 {[%clk 0:01:20.4]} 22...
Qb8 {[%clk 0:02:16.7]} 23. Qxg6 {[%clk 0:01:19]} 23... Nd5 {[%clk 0:02:04.8]}
24. Nh6+ {[%clk 0:01:16.3]} 24... Kh8 {[%clk 0:02:05.1]} 25. Nxf7+ {[%clk
0:01:16.7]} 25... Kg8 {[%clk 0:02:05.6]} 26. Nh6+ {[%clk 0:01:11.9]} 26... Kh8
{[%clk 0:02:05.6]} 27. e6 {[%clk 0:01:01.1]} 27... Rde7 {[%clk 0:01:58.6]} 28.
Nf7+ {[%clk 0:01:01.5]} 28... Kg8 {[%clk 0:01:57.8]} 29. Ng5 {[%clk 0:01:01.8]}
29... Qg3 {[%clk 0:01:52.9]} 30. Qh7# {[%clk 0:01:01.3]} 1-0

[Event "Late-Titled-Tuesday-Blitz-May-28-2024"]
[Site "Chess.com"]
[Date "2024.05.28"]
[Round "10"]
[White "Boninknights"]
[Black "Zq1"]
[Result "0-1"]
[WhiteElo "2431"]
[BlackElo "2539"]
[TimeControl "180+1"]
[EndTime "15:52:36 PDT"]
[Termination "Zq1 won by resignation"]

1. d4 {[%clk 0:02:58.7]} 1... Nf6 {[%clk 0:02:59.6]} 2. Nf3 {[%clk 0:02:58.5]}
2... e6 {[%clk 0:02:59.3]} 3. c4 {[%clk 0:02:58]} 3... a6 {[%clk 0:02:59.4]} 4.
Bg5 {[%clk 0:02:51.2]} 4... c5 {[%clk 0:02:53.5]} 5. d5 {[%clk 0:02:48.6]} 5...
exd5 {[%clk 0:02:53.1]} 6. cxd5 {[%clk 0:02:47.9]} 6... d6 {[%clk 0:02:53.7]} 7.
a4 {[%clk 0:02:45.7]} 7... Be7 {[%clk 0:02:53.2]} 8. Nc3 {[%clk 0:02:43.5]} 8...
h6 {[%clk 0:02:53.3]} 9. Bxf6 {[%clk 0:02:41.4]} 9... Bxf6 {[%clk 0:02:52.6]}
10. Nd2 {[%clk 0:02:39.8]} 10... O-O {[%clk 0:02:47.5]} 11. Nc4 {[%clk 0:02:38]}
11... Be7 {[%clk 0:02:34.8]} 12. e3 {[%clk 0:02:34.4]} 12... b6 {[%clk
0:02:28.2]} 13. Qb3 {[%clk 0:02:30.8]} 13... Nd7 {[%clk 0:02:27.4]} 14. Be2
{[%clk 0:02:26.7]} 14... Rb8 {[%clk 0:02:23.6]} 15. O-O {[%clk 0:02:24.7]} 15...
Qc7 {[%clk 0:02:23.7]} 16. Rfc1 {[%clk 0:02:20.4]} 16... Bf6 {[%clk 0:02:22.7]}
17. Ne4 {[%clk 0:02:15.4]} 17... Be7 {[%clk 0:02:22.1]} 18. Qd1 {[%clk
0:02:09.2]} 18... f5 {[%clk 0:02:17.3]} 19. Ng3 {[%clk 0:01:57.8]} 19... f4
{[%clk 0:02:13.5]} 20. exf4 {[%clk 0:01:54.6]} 20... Rxf4 {[%clk 0:02:13.4]} 21.
Nh5 {[%clk 0:01:46.8]} 21... Rd4 {[%clk 0:02:11.1]} 22. Qc2 {[%clk 0:01:44.4]}
22... Nf6 {[%clk 0:02:07.8]} 23. Qg6 {[%clk 0:01:39.9]} 23... Nxh5 {[%clk
0:02:03.3]} 24. Bxh5 {[%clk 0:01:38.5]} 24... Bf8 {[%clk 0:01:54.9]} 25. b4
{[%clk 0:01:23.7]} 25... Rxd5 {[%clk 0:01:49.6]} 26. h4 {[%clk 0:01:08.3]} 26...
Bf5 {[%clk 0:01:37.9]} 27. Qg3 {[%clk 0:01:02.9]} 27... Bd3 {[%clk 0:01:35.4]}
28. Ne3 {[%clk 0:00:55.4]} 28... Rxh5 {[%clk 0:01:33.5]} 0-1

[Event "Late-Titled-Tuesday-Blitz-May-28-2024"]
[Site "Chess.com"]
[Date "2024.05.28"]
[Round "10"]
[White "Orest_Vovk"]
[Black "TheAlienParty"]
[Result "0-1"]
[WhiteElo "2500"]
[BlackElo "2406"]
[TimeControl "180+1"]
[EndTime "15:53:11 PDT"]
[Termination "TheAlienParty won by resignation"]

1. h4 {[%clk 0:02:53.9]} 1... d5 {[%clk 0:02:57.4]} 2. h5 {[%clk 0:02:54.3]}
2... h6 {[%clk 0:02:52.2]} 3. e4 {[%clk 0:02:54.3]} 3... dxe4 {[%clk 0:02:51.7]}
4. Nc3 {[%clk 0:02:54.9]} 4... Nf6 {[%clk 0:02:51]} 5. Qe2 {[%clk 0:02:54.6]}
5... Bf5 {[%clk 0:02:48.9]} 6. Qb5+ {[%clk 0:02:55.2]} 6... Bd7 {[%clk
0:02:44.4]} 7. Qxb7 {[%clk 0:02:55.7]} 7... Nc6 {[%clk 0:02:44.3]} 8. Bb5 {[%clk
0:02:55.9]} 8... Rb8 {[%clk 0:02:42.9]} 9. Qxc6 {[%clk 0:02:55.7]} 9... Bxc6
{[%clk 0:02:41.4]} 10. Bxc6+ {[%clk 0:02:56.6]} 10... Nd7 {[%clk 0:02:41.2]} 11.
Nxe4 {[%clk 0:02:57.2]} 11... Rb6 {[%clk 0:02:39.9]} 12. Ba4 {[%clk 0:02:57.1]}
12... c6 {[%clk 0:02:38.4]} 13. Nf3 {[%clk 0:02:55.2]} 13... Qc7 {[%clk
0:02:37.2]} 14. d4 {[%clk 0:02:53.7]} 14... e6 {[%clk 0:02:36.6]} 15. c3 {[%clk
0:02:52.1]} 15... Be7 {[%clk 0:02:35.2]} 16. b4 {[%clk 0:02:51.7]} 16... O-O
{[%clk 0:02:30.6]} 17. Bb3 {[%clk 0:02:44]} 17... e5 {[%clk 0:02:28.3]} 18. Be3
{[%clk 0:02:35.6]} 18... exd4 {[%clk 0:02:25.7]} 19. Bxd4 {[%clk 0:02:34.7]}
19... c5 {[%clk 0:02:23.9]} 20. bxc5 {[%clk 0:02:18.8]} 20... Nxc5 {[%clk
0:02:22.2]} 21. Ned2 {[%clk 0:01:53.7]} 21... Nxb3 {[%clk 0:02:18.4]} 22. Bxb6
{[%clk 0:01:43.6]} 22... Qxc3 {[%clk 0:02:17.6]} 23. O-O {[%clk 0:01:32.3]}
23... Nxd2 {[%clk 0:02:15.2]} 24. Nxd2 {[%clk 0:01:27.6]} 24... axb6 {[%clk
0:02:06.4]} 25. Ne4 {[%clk 0:01:26.3]} 25... Qe5 {[%clk 0:02:04.9]} 26. Ng3
{[%clk 0:01:21.7]} 26... Bh4 {[%clk 0:02:01.5]} 27. Rfe1 {[%clk 0:01:21.7]}
27... Qg5 {[%clk 0:01:54.2]} 28. Ne4 {[%clk 0:01:19.2]} 28... Qxh5 {[%clk
0:01:53.3]} 29. Rab1 {[%clk 0:01:16.9]} 29... Qa5 {[%clk 0:01:48.3]} 30. Re2
{[%clk 0:01:14.2]} 30... f5 {[%clk 0:01:45.3]} 31. Nd6 {[%clk 0:01:10.9]} 31...
f4 {[%clk 0:01:22.9]} 32. Rb5 {[%clk 0:01:03]} 32... Qa4 {[%clk 0:01:11.7]} 33.
Rxb6 {[%clk 0:00:54.4]} 33... Qd1+ {[%clk 0:01:10.6]} 0-1

[Event "Late-Titled-Tuesday-Blitz-May-28-2024"]
[Site "Chess.com"]
[Date "2024.05.28"]
[Round "10"]
[White "Bryanl106"]
[Black "temus_galaktionov"]
[Result "1-0"]
[WhiteElo "2710"]
[BlackElo "2859"]
[TimeControl "180+1"]
[EndTime "15:53:19 PDT"]
[Termination "Bryanl106 won by resignation"]

1. e4 {[%clk 0:03:00.9]} 1... c6 {[%clk 0:03:00.2]} 2. Nf3 {[%clk 0:03:00.4]}
2... g6 {[%clk 0:03:00.1]} 3. d4 {[%clk 0:02:58.5]} 3... d6 {[%clk 0:03:00.5]}
4. c4 {[%clk 0:02:57.8]} 4... Bg7 {[%clk 0:03:01.4]} 5. Nc3 {[%clk 0:02:57.7]}
5... Bg4 {[%clk 0:03:00.4]} 6. Be3 {[%clk 0:02:57.4]} 6... Qb6 {[%clk
0:03:00.2]} 7. Qd2 {[%clk 0:02:55.6]} 7... Bxf3 {[%clk 0:03:00.4]} 8. gxf3
{[%clk 0:02:56.5]} 8... Nd7 {[%clk 0:03:00.9]} 9. f4 {[%clk 0:02:55.9]} 9... Qa5
{[%clk 0:02:56.9]} 10. e5 {[%clk 0:02:53.7]} 10... Rd8 {[%clk 0:02:54]} 11. Ne4
{[%clk 0:02:41.8]} 11... Qxd2+ {[%clk 0:02:52.1]} 12. Nxd2 {[%clk 0:02:42.7]}
12... Nh6 {[%clk 0:02:45.4]} 13. Bh3 {[%clk 0:02:41.3]} 13... b6 {[%clk
0:02:39.3]} 14. Ne4 {[%clk 0:02:37.8]} 14... dxe5 {[%clk 0:02:38.3]} 15. fxe5
{[%clk 0:02:37.1]} 15... Nf5 {[%clk 0:02:31.4]} 16. Rg1 {[%clk 0:02:30]} 16...
Nxe3 {[%clk 0:02:28.1]} 17. fxe3 {[%clk 0:02:30.9]} 17... f6 {[%clk 0:02:20.5]}
18. e6 {[%clk 0:02:19.8]} 18... Nf8 {[%clk 0:02:15.2]} 19. Rd1 {[%clk 0:02:10]}
19... Bh6 {[%clk 0:02:11.9]} 20. d5 {[%clk 0:02:03.6]} 20... Bxe3 {[%clk
0:02:06.1]} 21. Rg3 {[%clk 0:02:02.6]} 21... Bf4 {[%clk 0:02:06]} 22. Ra3 {[%clk
0:02:01.6]} 22... f5 {[%clk 0:02:04.1]} 23. Nc3 {[%clk 0:01:53.4]} 23... cxd5
{[%clk 0:02:02.3]} 24. cxd5 {[%clk 0:01:54.3]} 24... Bb8 {[%clk 0:02:00.8]} 25.
Bf1 {[%clk 0:01:51.3]} 25... Rc8 {[%clk 0:01:45.1]} 26. Ba6 {[%clk 0:01:44.7]}
26... Rc5 {[%clk 0:01:43.9]} 27. b4 {[%clk 0:01:44]} 27... Rc7 {[%clk
0:01:39.6]} 28. Bb5+ {[%clk 0:01:41.5]} 28... Kd8 {[%clk 0:01:39.7]} 29. Bc6
{[%clk 0:01:42.4]} 29... Kc8 {[%clk 0:01:38.9]} 30. Nb5 {[%clk 0:01:41.5]} 30...
Nxe6 {[%clk 0:01:39.1]} 31. Nxc7 {[%clk 0:01:31.3]} 31... Nxc7 {[%clk
0:01:38.6]} 32. Re3 {[%clk 0:01:30.5]} 32... Kd8 {[%clk 0:01:36.9]} 33. d6
{[%clk 0:01:28.3]} 33... exd6 {[%clk 0:01:36.7]} 34. Rxd6+ {[%clk 0:01:29.2]}
34... Kc8 {[%clk 0:01:37.3]} 35. Rdd3 {[%clk 0:01:24.3]} 35... Na6 {[%clk
0:01:29.4]} 36. Re7 {[%clk 0:01:21.7]} 36... Bc7 {[%clk 0:01:27.3]} 37. a3
{[%clk 0:01:20.2]} 37... Nb8 {[%clk 0:01:21.9]} 38. Bd5 {[%clk 0:01:16.8]} 38...
Kd8 {[%clk 0:01:07.6]} 39. Rg7 {[%clk 0:01:11.2]} 39... Bxh2 {[%clk 0:01:05.9]}
40. Bc6+ {[%clk 0:01:06.8]} 1-0

[Event "Late-Titled-Tuesday-Blitz-May-28-2024"]
[Site "Chess.com"]
[Date "2024.05.28"]
[Round "10"]
[White "LiemLe"]
[Black "RuperezA"]
[Result "1-0"]
[WhiteElo "3021"]
[BlackElo "2738"]
[TimeControl "180+1"]
[EndTime "15:53:30 PDT"]
[Termination "LiemLe won on time"]

1. c4 {[%clk 0:03:00.9]} 1... e6 {[%clk 0:02:58.1]} 2. g3 {[%clk 0:03:00.9]}
2... d5 {[%clk 0:02:59]} 3. Bg2 {[%clk 0:03:01.5]} 3... Nf6 {[%clk 0:02:59.2]}
4. Nf3 {[%clk 0:03:02.1]} 4... Be7 {[%clk 0:03:00.1]} 5. O-O {[%clk 0:03:02.3]}
5... O-O {[%clk 0:03:00.5]} 6. b3 {[%clk 0:03:02.8]} 6... c5 {[%clk 0:02:57.3]}
7. Ne5 {[%clk 0:02:53.1]} 7... Nbd7 {[%clk 0:02:48.3]} 8. Bb2 {[%clk 0:02:49.3]}
8... Nxe5 {[%clk 0:02:37.4]} 9. Bxe5 {[%clk 0:02:50.2]} 9... d4 {[%clk
0:02:28.8]} 10. Bxf6 {[%clk 0:02:50.3]} 10... Bxf6 {[%clk 0:02:15.5]} 11. d3
{[%clk 0:02:51.2]} 11... Be7 {[%clk 0:02:14]} 12. Nd2 {[%clk 0:02:50.9]} 12...
e5 {[%clk 0:02:14.1]} 13. a3 {[%clk 0:02:49.8]} 13... a5 {[%clk 0:02:07.2]} 14.
Qc2 {[%clk 0:02:49.8]} 14... Ra6 {[%clk 0:02:03.8]} 15. e4 {[%clk 0:02:49.7]}
15... dxe3 {[%clk 0:01:49]} 16. fxe3 {[%clk 0:02:50.6]} 16... Rd6 {[%clk
0:01:49]} 17. Bd5 {[%clk 0:02:50.1]} 17... Be6 {[%clk 0:01:37.2]} 18. e4 {[%clk
0:02:49.8]} 18... Bg5 {[%clk 0:01:32.2]} 19. Nf3 {[%clk 0:02:45.2]} 19... Be3+
{[%clk 0:01:32]} 20. Kg2 {[%clk 0:02:45.6]} 20... b6 {[%clk 0:01:13.1]} 21. Nxe5
{[%clk 0:02:25]} 21... Bd4 {[%clk 0:01:10.7]} 22. Nc6 {[%clk 0:02:24.9]} 22...
Qd7 {[%clk 0:00:10.2]} 23. Nxd4 {[%clk 0:02:24.5]} 23... Bh3+ {[%clk 0:00:08.3]}
24. Kg1 {[%clk 0:02:24.9]} 24... Bxf1 {[%clk 0:00:09.2]} 25. Nf5 {[%clk
0:02:25]} 25... Bh3 {[%clk 0:00:04.6]} 26. Nxd6 {[%clk 0:02:24.4]} 26... Qxd6
{[%clk 0:00:05.5]} 27. Qc3 {[%clk 0:02:03.5]} 27... Qh6 {[%clk 0:00:05.5]} 28.
Re1 {[%clk 0:02:02.9]} 28... Qg5 {[%clk 0:00:05.2]} 29. d4 {[%clk 0:01:58.9]}
29... cxd4 {[%clk 0:00:04.6]} 30. Qxd4 {[%clk 0:01:59.8]} 30... h6 {[%clk
0:00:05.3]} 31. Qxb6 {[%clk 0:01:53.5]} 31... Qd2 {[%clk 0:00:03]} 32. Qf2
{[%clk 0:01:54.1]} 32... Qd3 {[%clk 0:00:03.5]} 33. c5 {[%clk 0:01:51.6]} 33...
Rd8 {[%clk 0:00:02]} 34. Bxf7+ {[%clk 0:01:44]} 34... Kh8 {[%clk 0:00:02.4]} 35.
Bd5 {[%clk 0:01:44.3]} 35... Qc3 {[%clk 0:00:01.1]} 36. c6 {[%clk 0:01:43.5]}
1-0

[Event "Late-Titled-Tuesday-Blitz-May-28-2024"]
[Site "Chess.com"]
[Date "2024.05.28"]
[Round "10"]
[White "Onthequiet"]
[Black "ChadBiryani"]
[Result "0-1"]
[WhiteElo "2442"]
[BlackElo "2546"]
[TimeControl "180+1"]
[EndTime "15:53:30 PDT"]
[Termination "ChadBiryani won by resignation"]

1. e4 {[%clk 0:03:00.9]} 1... c5 {[%clk 0:02:59.8]} 2. b3 {[%clk 0:03:00.5]}
2... Nc6 {[%clk 0:02:55.3]} 3. Bb2 {[%clk 0:03:00.6]} 3... e6 {[%clk 0:02:49.9]}
4. Bb5 {[%clk 0:02:58.6]} 4... Nd4 {[%clk 0:02:49.4]} 5. Bxd4 {[%clk 0:02:53.3]}
5... cxd4 {[%clk 0:02:49.2]} 6. Nf3 {[%clk 0:02:53.3]} 6... Qf6 {[%clk
0:02:32.3]} 7. e5 {[%clk 0:02:46]} 7... Qg6 {[%clk 0:02:30.8]} 8. O-O {[%clk
0:02:43.1]} 8... Bc5 {[%clk 0:02:30]} 9. c3 {[%clk 0:02:38.8]} 9... d3 {[%clk
0:02:21.2]} 10. b4 {[%clk 0:02:27.5]} 10... Bb6 {[%clk 0:02:15.4]} 11. Na3
{[%clk 0:02:26.9]} 11... Ne7 {[%clk 0:02:12.8]} 12. Qb1 {[%clk 0:02:24.4]} 12...
O-O {[%clk 0:02:11.1]} 13. Bxd3 {[%clk 0:02:24]} 13... Qh6 {[%clk 0:02:10.9]}
14. Nc4 {[%clk 0:02:21.2]} 14... Bc7 {[%clk 0:02:09.2]} 15. Be4 {[%clk
0:02:16.3]} 15... Ng6 {[%clk 0:02:04.2]} 16. d4 {[%clk 0:02:04.7]} 16... Nf4
{[%clk 0:01:57.1]} 17. Re1 {[%clk 0:01:58.8]} 17... f5 {[%clk 0:01:55.5]} 18.
Bc2 {[%clk 0:01:43.1]} 18... g5 {[%clk 0:01:52.5]} 19. Qc1 {[%clk 0:01:41.4]}
19... b6 {[%clk 0:01:50.1]} 20. h4 {[%clk 0:01:12.6]} 20... g4 {[%clk
0:01:44.1]} 21. Ng5 {[%clk 0:01:04.7]} 21... Ng6 {[%clk 0:01:44]} 22. g3 {[%clk
0:01:03.7]} 22... Bb7 {[%clk 0:01:43.1]} 23. Nb2 {[%clk 0:00:24.9]} 23... Nxh4
{[%clk 0:01:39]} 24. gxh4 {[%clk 0:00:15.6]} 24... Qxh4 {[%clk 0:01:39.1]} 25.
Ne4 {[%clk 0:00:14.7]} 25... fxe4 {[%clk 0:01:38.4]} 26. Nd1 {[%clk 0:00:09.7]}
26... g3 {[%clk 0:01:31.7]} 27. Rxe4 {[%clk 0:00:07.4]} 27... Qh2+ {[%clk
0:01:26.1]} 0-1

[Event "Late-Titled-Tuesday-Blitz-May-28-2024"]
[Site "Chess.com"]
[Date "2024.05.28"]
[Round "10"]
[White "Tol_Tol"]
[Black "blueryder"]
[Result "1-0"]
[WhiteElo "2346"]
[BlackElo "2167"]
[TimeControl "180+1"]
[EndTime "15:53:36 PDT"]
[Termination "Tol_Tol won by resignation"]

1. d4 {[%clk 0:03:00.9]} 1... d5 {[%clk 0:02:59.3]} 2. c4 {[%clk 0:03:01]} 2...
e6 {[%clk 0:02:58.7]} 3. Nc3 {[%clk 0:03:01.1]} 3... Nf6 {[%clk 0:02:58.8]} 4.
Bg5 {[%clk 0:03:00.6]} 4... Be7 {[%clk 0:02:58.8]} 5. e3 {[%clk 0:03:01]} 5...
Nbd7 {[%clk 0:02:55.8]} 6. Nf3 {[%clk 0:03:01.3]} 6... O-O {[%clk 0:02:54.1]} 7.
Qc2 {[%clk 0:03:01.3]} 7... h6 {[%clk 0:02:48.2]} 8. h4 {[%clk 0:03:01.1]} 8...
c5 {[%clk 0:02:45.5]} 9. cxd5 {[%clk 0:02:59.3]} 9... Nxd5 {[%clk 0:02:42.2]}
10. Nxd5 {[%clk 0:02:52.1]} 10... exd5 {[%clk 0:02:41.1]} 11. Bxe7 {[%clk
0:02:50]} 11... Qxe7 {[%clk 0:02:40.6]} 12. Be2 {[%clk 0:02:42.3]} 12... cxd4
{[%clk 0:02:31.8]} 13. Nxd4 {[%clk 0:02:41]} 13... Nf6 {[%clk 0:02:30]} 14. Bf3
{[%clk 0:02:39.9]} 14... Ne4 {[%clk 0:02:21.5]} 15. O-O-O {[%clk 0:02:26.4]}
15... Bd7 {[%clk 0:02:16.8]} 16. Kb1 {[%clk 0:02:26.4]} 16... Rfc8 {[%clk
0:02:06.3]} 17. Qe2 {[%clk 0:02:22.1]} 17... Bc6 {[%clk 0:01:13.2]} 18. g4
{[%clk 0:02:20.8]} 18... Qb4 {[%clk 0:01:07.2]} 19. Bxe4 {[%clk 0:02:09.1]}
19... dxe4 {[%clk 0:01:06.7]} 20. g5 {[%clk 0:02:09.6]} 20... h5 {[%clk
0:00:59.1]} 21. Qxh5 {[%clk 0:02:07.3]} 21... Bd5 {[%clk 0:00:58.4]} 22. g6
{[%clk 0:02:01.2]} 22... Qa5 {[%clk 0:00:41.5]} 23. gxf7+ {[%clk 0:01:58.2]}
23... Kf8 {[%clk 0:00:35.6]} 24. Nb3 {[%clk 0:01:42.6]} 24... Qc7 {[%clk
0:00:21]} 25. Rxd5 {[%clk 0:01:29.9]} 25... Qc2+ {[%clk 0:00:19.9]} 26. Ka1
{[%clk 0:01:29.9]} 26... Qxf2 {[%clk 0:00:09.8]} 27. Rf5 {[%clk 0:01:18.4]} 1-0

[Event "Late-Titled-Tuesday-Blitz-May-28-2024"]
[Site "Chess.com"]
[Date "2024.05.28"]
[Round "10"]
[White "GarayevKanan"]
[Black "Abduzhaparov"]
[Result "1-0"]
[WhiteElo "2735"]
[BlackElo "2518"]
[TimeControl "180+1"]
[EndTime "15:53:39 PDT"]
[Termination "GarayevKanan won on time"]

1. d4 {[%clk 0:03:00.9]} 1... d6 {[%clk 0:03:00.9]} 2. e4 {[%clk 0:03:00.7]}
2... Nf6 {[%clk 0:03:00.7]} 3. Nc3 {[%clk 0:03:01.1]} 3... e5 {[%clk 0:03:01.6]}
4. Nge2 {[%clk 0:03:00.8]} 4... exd4 {[%clk 0:03:00.9]} 5. Nxd4 {[%clk
0:03:01.7]} 5... Be7 {[%clk 0:03:01.5]} 6. g3 {[%clk 0:03:01.9]} 6... O-O {[%clk
0:03:01.4]} 7. Bg2 {[%clk 0:03:02.4]} 7... Re8 {[%clk 0:03:02]} 8. O-O {[%clk
0:03:02.9]} 8... Bf8 {[%clk 0:03:02.2]} 9. h3 {[%clk 0:03:03.2]} 9... Nbd7
{[%clk 0:03:02.3]} 10. Re1 {[%clk 0:03:03.7]} 10... Nc5 {[%clk 0:03:02.3]} 11.
Nb3 {[%clk 0:03:04.3]} 11... Ncd7 {[%clk 0:02:59]} 12. Nd4 {[%clk 0:03:00.8]}
12... Nc5 {[%clk 0:02:58.4]} 13. Nb3 {[%clk 0:03:01.5]} 13... Ncd7 {[%clk
0:02:58.5]} 14. f4 {[%clk 0:03:00.4]} 14... a5 {[%clk 0:02:58]} 15. a4 {[%clk
0:02:59.6]} 15... c6 {[%clk 0:02:57.8]} 16. Be3 {[%clk 0:02:58.4]} 16... Qc7
{[%clk 0:02:54]} 17. g4 {[%clk 0:02:56.8]} 17... Nb6 {[%clk 0:02:43.5]} 18. g5
{[%clk 0:02:52.6]} 18... Nfd7 {[%clk 0:02:42.4]} 19. Qe2 {[%clk 0:02:51.1]}
19... g6 {[%clk 0:02:39.5]} 20. Rad1 {[%clk 0:02:46.9]} 20... Bg7 {[%clk
0:02:34.2]} 21. Bd4 {[%clk 0:02:46.7]} 21... d5 {[%clk 0:02:26.3]} 22. Bxg7
{[%clk 0:02:44.1]} 22... Kxg7 {[%clk 0:02:27.2]} 23. Qf2 {[%clk 0:02:42.2]}
23... dxe4 {[%clk 0:01:32.4]} 24. Qd4+ {[%clk 0:02:41.2]} 24... Kg8 {[%clk
0:01:28.4]} 25. Nxe4 {[%clk 0:02:39.6]} 25... Nd5 {[%clk 0:01:24.7]} 26. f5
{[%clk 0:02:33.1]} 26... Qb6 {[%clk 0:01:18.1]} 27. Nec5 {[%clk 0:02:28.3]}
27... Rf8 {[%clk 0:00:53.7]} 28. Nxd7 {[%clk 0:02:10.7]} 28... Bxd7 {[%clk
0:00:40.4]} 29. Bxd5 {[%clk 0:02:07.9]} 29... Qxd4+ {[%clk 0:00:39.1]} 30. Rxd4
{[%clk 0:02:08.8]} 30... cxd5 {[%clk 0:00:39.5]} 31. f6 {[%clk 0:02:08]} 31...
Rfe8 {[%clk 0:00:35.8]} 32. Rxe8+ {[%clk 0:02:06]} 32... Bxe8 {[%clk 0:00:34.6]}
33. Nc5 {[%clk 0:02:06.9]} 33... Bc6 {[%clk 0:00:33.3]} 34. b3 {[%clk
0:02:01.3]} 34... Re8 {[%clk 0:00:33.6]} 35. Kf2 {[%clk 0:02:01.9]} 35... Re5
{[%clk 0:00:31.8]} 36. h4 {[%clk 0:02:02.4]} 36... Rf5+ {[%clk 0:00:31.9]} 37.
Kg3 {[%clk 0:01:59.5]} 37... Rf1 {[%clk 0:00:31.6]} 38. Nd3 {[%clk 0:01:56.3]}
38... Rg1+ {[%clk 0:00:21.9]} 39. Kf2 {[%clk 0:01:55.7]} 39... Rh1 {[%clk
0:00:20.4]} 40. c4 {[%clk 0:01:55.9]} 40... Rh2+ {[%clk 0:00:04.7]} 41. Kg3
{[%clk 0:01:55.4]} 41... Rb2 {[%clk 0:00:01.8]} 42. cxd5 {[%clk 0:01:55.5]}
42... Bd7 {[%clk 0:00:01.6]} 43. Nc5 {[%clk 0:01:56]} 1-0

[Event "Late-Titled-Tuesday-Blitz-May-28-2024"]
[Site "Chess.com"]
[Date "2024.05.28"]
[Round "10"]
[White "nabukatnezarr"]
[Black "wild3000"]
[Result "1-0"]
[WhiteElo "2629"]
[BlackElo "2372"]
[TimeControl "180+1"]
[EndTime "15:53:41 PDT"]
[Termination "nabukatnezarr won by checkmate"]

1. f3 {[%clk 0:03:00.9]} 1... a5 {[%clk 0:02:34.1]} 2. Kf2 {[%clk 0:03:01.8]}
2... a4 {[%clk 0:02:34.1]} 3. e3 {[%clk 0:03:02.7]} 3... h5 {[%clk 0:02:34.1]}
4. a3 {[%clk 0:03:03.6]} 4... h4 {[%clk 0:02:33.9]} 5. d4 {[%clk 0:03:03.1]}
5... b6 {[%clk 0:02:33.8]} 6. c4 {[%clk 0:03:03.4]} 6... Bb7 {[%clk 0:02:33.5]}
7. Nc3 {[%clk 0:03:03.6]} 7... Nf6 {[%clk 0:02:30.7]} 8. Nxa4 {[%clk 0:03:03.9]}
8... e6 {[%clk 0:02:30.7]} 9. Nc3 {[%clk 0:03:04.3]} 9... d5 {[%clk 0:02:30.9]}
10. Bd3 {[%clk 0:03:04.4]} 10... c5 {[%clk 0:02:31]} 11. Nge2 {[%clk 0:03:03.2]}
11... cxd4 {[%clk 0:02:30.7]} 12. exd4 {[%clk 0:03:04.1]} 12... dxc4 {[%clk
0:02:30.5]} 13. Bxc4 {[%clk 0:03:05]} 13... h3 {[%clk 0:02:28.4]} 14. g3 {[%clk
0:03:04.4]} 14... Be7 {[%clk 0:02:27.5]} 15. Be3 {[%clk 0:03:03.4]} 15... Nc6
{[%clk 0:02:22.9]} 16. Rf1 {[%clk 0:03:03.2]} 16... Na5 {[%clk 0:02:21.3]} 17.
Ba2 {[%clk 0:03:02.2]} 17... Rc8 {[%clk 0:02:18.2]} 18. Kg1 {[%clk 0:03:01.6]}
18... Nc4 {[%clk 0:02:18.1]} 19. Bxc4 {[%clk 0:02:58.4]} 19... Rxc4 {[%clk
0:02:17.3]} 20. Nf4 {[%clk 0:02:56.1]} 20... g5 {[%clk 0:02:12.2]} 21. Nfe2
{[%clk 0:02:54.5]} 21... g4 {[%clk 0:02:11.5]} 22. Qd3 {[%clk 0:02:48.6]} 22...
Rc8 {[%clk 0:01:53]} 23. Ne4 {[%clk 0:02:30.8]} 23... Nxe4 {[%clk 0:01:43.5]}
24. fxe4 {[%clk 0:02:27.1]} 24... f5 {[%clk 0:01:43.5]} 25. Nc3 {[%clk
0:02:20.9]} 25... O-O {[%clk 0:01:39.3]} 26. d5 {[%clk 0:02:11.2]} 26... Bf6
{[%clk 0:01:26.9]} 27. Rad1 {[%clk 0:02:02.3]} 27... Bxc3 {[%clk 0:01:19.1]} 28.
bxc3 {[%clk 0:01:58.5]} 28... fxe4 {[%clk 0:01:17.4]} 29. Qxe4 {[%clk
0:01:58.8]} 29... Rxf1+ {[%clk 0:01:13.4]} 30. Rxf1 {[%clk 0:01:39.8]} 30...
Qxd5 {[%clk 0:00:22.9]} 31. Qg6+ {[%clk 0:01:37.6]} 31... Kh8 {[%clk 0:00:22.6]}
32. Bd4+ {[%clk 0:01:37.1]} 32... e5 {[%clk 0:00:22.8]} 33. Qh5+ {[%clk
0:01:37.1]} 33... Kg8 {[%clk 0:00:21.5]} 34. Qxg4+ {[%clk 0:01:37.6]} 34... Kh8
{[%clk 0:00:19.3]} 35. Qxh3+ {[%clk 0:01:37.9]} 35... Kg8 {[%clk 0:00:18.9]} 36.
Qg4+ {[%clk 0:01:38]} 36... Kh8 {[%clk 0:00:19]} 37. Qh5+ {[%clk 0:01:38]} 37...
Kg8 {[%clk 0:00:18.9]} 38. Qg5+ {[%clk 0:01:38.4]} 38... Kh8 {[%clk 0:00:17]}
39. Bxe5+ {[%clk 0:01:38.1]} 39... Kh7 {[%clk 0:00:12.1]} 40. Qg7# {[%clk
0:01:36.5]} 1-0